[Event "European Rapid Championship 2021"]
[Site "Katowice"]
[Date "2021.12.18"]
[Round "3.1"]
[White "Keinanen, Toivo"]
[Black "Luberanski, Jakub"]
[Result "1-0"]
[ECO "A48"]
[WhiteElo "2341"]
[BlackElo "2199"]
[Annotator "NA"]
[PlyCount "77"]
[EventDate "2021.12.18"]
[EventType "swiss"]
[EventCountry "POL"]
[SourceTitle "playchess.com"]
[Source "ChessBase"]
[SourceQuality "1"]
[TimeControl "900+10"]

1. d4 {[%emt 0:00:01]} Nf6 {[%emt 0:00:01]} 2. Nf3 {[%emt 0:00:01]} g6 {
[%emt 0:00:02]} 3. Nbd2 {[%emt 0:00:01]} d5 {[%emt 0:00:03]} 4. c4 {[%emt 0:00:
00]} c6 {[%emt 0:00:09]} 5. e3 {[%emt 0:00:02]} Bg7 {[%emt 0:00:04]} 6. Be2 {
[%emt 0:00:01]} O-O {[%emt 0:00:05]} 7. O-O {[%emt 0:00:02]} Bg4 {[%emt 0:00:
19]} 8. h3 {[%emt 0:02:15]} Bxf3 {[%emt 0:00:02]} 9. Nxf3 {[%emt 0:00:08]} e6 {
[%emt 0:00:43]} 10. b4 {[%emt 0:00:12]} Nbd7 {[%emt 0:01:21]} 11. Qb3 {[%emt 0:
01:28]} Ne4 {[%emt 0:00:33]} 12. Bb2 {[%emt 0:00:16]} a6 {[%emt 0:01:09]} 13.
a4 {[%emt 0:00:52]} Nd6 {[%emt 0:03:42]} 14. c5 {[%emt 0:03:42]} Nf5 {[%emt 0:
00:01]} 15. b5 {[%emt 0:00:38]} Qe7 {[%emt 0:00:03]} 16. Bd3 {[%emt 0:00:57]}
e5 {[%emt 0:02:01]} 17. Bxf5 {[%emt 0:00:37]} gxf5 {[%emt 0:00:01]} 18. Nxe5 {
[%emt 0:00:46]} Bxe5 {[%emt 0:01:22]} 19. dxe5 {[%emt 0:00:03]} Nxc5 {[%emt 0:
00:01]} 20. Qb4 {[%emt 0:00:16]} a5 {[%emt 0:00:32]} 21. Qa3 {[%emt 0:00:26]}
cxb5 {[%emt 0:00:03]} 22. axb5 {[%emt 0:00:02]} b6 {[%emt 0:00:01]} 23. Rad1 {
[%emt 0:00:51]} Qd7 {[%emt 0:00:24]} 24. Bd4 {[%emt 0:01:49]} Rfc8 {[%emt 0:00:
30]} 25. Kh2 {[%emt 0:00:30]} Qxb5 {[%emt 0:00:17]} 26. Rb1 {[%emt 0:00:22]}
Qc6 {[%emt 0:01:39]} 27. g4 {[%emt 0:00:23]} fxg4 {[%emt 0:00:21]} 28. Rg1 {
[%emt 0:00:08]} Kf8 {[%emt 0:01:42]} 29. Rxg4 {[%emt 0:00:27]} Ke7 {[%emt 0:00:
02]} 30. Rf4 {[%emt 0:00:34]} Rab8 {[%emt 0:00:16]} 31. Rf6 {[%emt 0:00:19]}
Qc7 {[%emt 0:00:06]} 32. Rd6 {[%emt 0:00:36]} Rd8 {[%emt 0:00:51]} 33. Rdxb6 {
[%emt 0:00:34]} Rxb6 {[%emt 0:00:02]} 34. Rxb6 {[%emt 0:00:01]} Rc8 {[%emt 0:
00:11]} 35. Rb5 {[%emt 0:00:16]} Ke6 {[%emt 0:00:01]} 36. Rxc5 {[%emt 0:00:15]}
Qb7 {[%emt 0:00:01]} 37. Rxc8 {[%emt 0:00:13]} Qxc8 {[%emt 0:00:01]} 38. Qxa5 {
[%emt 0:00:06]} Qc2 {[%emt 0:00:02]} 39. Qb6+ {[%emt 0:00:05]} 1-0

[Event "European Rapid Championship 2021"]
[Site "Katowice"]
[Date "2021.12.18"]
[Round "3.2"]
[White "Woloch, Oskar"]
[Black "Bjerre, Jonas Buhl"]
[Result "1-0"]
[ECO "A21"]
[WhiteElo "2036"]
[BlackElo "2330"]
[Annotator "NA"]
[PlyCount "69"]
[EventDate "2021.12.18"]
[EventType "swiss"]
[EventCountry "POL"]
[SourceTitle "playchess.com"]
[Source "ChessBase"]
[SourceQuality "1"]
[TimeControl "900+10"]

1. c4 {[%emt 0:00:01]} e5 {[%emt 0:00:02]} 2. Nc3 {[%emt 0:00:03]} Bb4 {
[%emt 0:00:02]} 3. Nd5 {[%emt 0:00:06]} a5 {[%emt 0:00:02]} 4. a3 {[%emt 0:00:
39]} Bc5 {[%emt 0:00:03]} 5. e3 {[%emt 0:00:14]} Nf6 {[%emt 0:00:18]} 6. g3 {
[%emt 0:00:30]} Nxd5 {[%emt 0:00:08]} 7. cxd5 {[%emt 0:00:01]} d6 {[%emt 0:01:
36]} 8. Bg2 {[%emt 0:00:10]} h5 {[%emt 0:00:07]} 9. h3 {[%emt 0:00:31]} h4 {
[%emt 0:00:21]} 10. g4 {[%emt 0:00:53]} f5 {[%emt 0:00:02]} 11. d4 {[%emt 0:00:
37]} exd4 {[%emt 0:00:05]} 12. exd4 {[%emt 0:00:01]} Bb6 {[%emt 0:00:00]} 13.
g5 {[%emt 0:00:01]} O-O {[%emt 0:00:40]} 14. Ne2 {[%emt 0:00:29]} f4 {[%emt 0:
01:02]} 15. Bxf4 {[%emt 0:01:05]} Bf5 {[%emt 0:00:47]} 16. Be3 {[%emt 0:00:58]}
Qe7 {[%emt 0:00:55]} 17. O-O {[%emt 0:00:27]} Be4 {[%emt 0:00:33]} 18. Nc3 {
[%emt 0:00:21]} Bf5 {[%emt 0:00:23]} 19. Qh5 {[%emt 0:00:20]} g6 {[%emt 0:00:
27]} 20. Qxh4 {[%emt 0:00:12]} Nd7 {[%emt 0:00:01]} 21. Rac1 {[%emt 0:00:29]}
Rae8 {[%emt 0:00:14]} 22. Ne2 {[%emt 0:00:51]} Rf7 {[%emt 0:00:39]} 23. Nf4 {
[%emt 0:00:23]} Be4 {[%emt 0:00:47]} 24. Rfe1 {[%emt 0:00:53]} Bxg2 {[%emt 0:
00:12]} 25. Nxg6 {[%emt 0:00:20]} Rh7 {[%emt 0:00:07]} 26. Nxe7+ {[%emt 0:00:
03]} Rexe7 {[%emt 0:00:01]} 27. Qxh7+ {[%emt 0:00:41]} Kxh7 {[%emt 0:00:10]}
28. Kxg2 {[%emt 0:00:03]} Kg6 {[%emt 0:00:02]} 29. Kg3 {[%emt 0:00:07]} Kf5 {
[%emt 0:00:04]} 30. h4 {[%emt 0:00:14]} Rh7 {[%emt 0:00:06]} 31. f3 {[%emt 0:
00:12]} Nf8 {[%emt 0:00:06]} 32. Bf2 {[%emt 0:00:31]} Ng6 {[%emt 0:00:06]} 33.
Re6 {[%emt 0:00:01]} Nxh4 {[%emt 0:00:45]} 34. Rh1 {[%emt 0:00:07]} Kxg5 {
[%emt 0:00:02]} 35. f4+ {[%emt 0:00:01]} 1-0

[Event "European Rapid Championship 2021"]
[Site "Katowice"]
[Date "2021.12.18"]
[Round "3.3"]
[White "Szpar, Milosz"]
[Black "Samborski, Henryk"]
[Result "1-0"]
[ECO "B53"]
[WhiteElo "2315"]
[BlackElo "2029"]
[Annotator "NA"]
[PlyCount "77"]
[EventDate "2021.12.18"]
[EventType "swiss"]
[EventCountry "POL"]
[SourceTitle "playchess.com"]
[Source "ChessBase"]
[SourceQuality "1"]
[TimeControl "900+10"]

1. e4 {[%emt 0:00:03]} c5 {[%emt 0:00:08]} 2. Nf3 {[%emt 0:00:03]} d6 {[%emt 0:
00:02]} 3. d4 {[%emt 0:00:04]} cxd4 {[%emt 0:00:01]} 4. Qxd4 {[%emt 0:00:03]}
Nc6 {[%emt 0:00:12]} 5. Bb5 {[%emt 0:00:03]} Bd7 {[%emt 0:00:17]} 6. Bxc6 {
[%emt 0:00:03]} Bxc6 {[%emt 0:00:18]} 7. Nc3 {[%emt 0:00:04]} e5 {[%emt 0:02:
27]} 8. Qd3 {[%emt 0:00:25]} h6 {[%emt 0:00:06]} 9. O-O {[%emt 0:00:26]} Be7 {
[%emt 0:00:08]} 10. a4 {[%emt 0:02:34]} Nf6 {[%emt 0:01:55]} 11. Nd2 {[%emt 0:
00:32]} O-O {[%emt 0:01:22]} 12. Nc4 {[%emt 0:01:18]} Rc8 13. Rd1 {[%emt 0:00:
27]} Qc7 {[%emt 0:02:19]} 14. Ne3 {[%emt 0:00:49]} Rfd8 {[%emt 0:01:24]} 15. b3
{[%emt 0:00:28]} Bf8 {[%emt 0:01:55]} 16. Bb2 {[%emt 0:00:35]} b6 {[%emt 0:01:
58]} 17. Rac1 {[%emt 0:02:20]} g6 {[%emt 0:00:13]} 18. Ba3 {[%emt 0:00:30]} Qb7
{[%emt 0:01:02]} 19. Ncd5 {[%emt 0:00:18]} Bxd5 {[%emt 0:00:16]} 20. Nxd5 {
[%emt 0:00:11]} Nxd5 {[%emt 0:00:04]} 21. Qxd5 {[%emt 0:00:02]} Qxd5 {[%emt 0:
00:56]} 22. Rxd5 {[%emt 0:00:03]} f5 {[%emt 0:00:20]} 23. c4 {[%emt 0:00:48]}
Kf7 {[%emt 0:00:02]} 24. Rcd1 {[%emt 0:00:13]} Ke6 {[%emt 0:00:04]} 25. f4 {
[%emt 0:00:29]} fxe4 {[%emt 0:01:34]} 26. fxe5 {[%emt 0:00:32]} Be7 {[%emt 0:
00:16]} 27. exd6 {[%emt 0:00:09]} Bf6 {[%emt 0:00:02]} 28. Re1 {[%emt 0:00:17]}
Rd7 {[%emt 0:00:05]} 29. Rxe4+ {[%emt 0:00:10]} Kf7 {[%emt 0:00:04]} 30. g3 {
[%emt 0:00:22]} h5 {[%emt 0:00:11]} 31. Kg2 {[%emt 0:00:06]} Re8 {[%emt 0:00:
24]} 32. Rxe8 {[%emt 0:00:08]} Kxe8 {[%emt 0:00:01]} 33. Kf3 {[%emt 0:00:10]}
Kf7 {[%emt 0:00:04]} 34. Ke4 {[%emt 0:00:10]} Ke6 {[%emt 0:00:01]} 35. a5 {
[%emt 0:00:26]} Bg7 {[%emt 0:00:08]} 36. axb6 {[%emt 0:00:28]} axb6 {[%emt 0:
00:01]} 37. Rb5 {[%emt 0:00:21]} Ra7 {[%emt 0:00:02]} 38. Bb4 {[%emt 0:00:04]}
Ra6 {[%emt 0:00:09]} 39. Rg5 {[%emt 0:00:08]} 1-0

[Event "European Rapid Championship 2021"]
[Site "Katowice"]
[Date "2021.12.18"]
[Round "3.4"]
[White "Kindler, Przemyslaw"]
[Black "Kozak, Antoni"]
[Result "0-1"]
[ECO "B90"]
[WhiteElo "2032"]
[BlackElo "2356"]
[Annotator "ChessBase"]
[PlyCount "116"]
[EventDate "2021.12.18"]
[EventType "swiss"]
[EventCountry "POL"]
[SourceTitle "playchess.com"]
[Source "ChessBase"]
[SourceQuality "1"]
[TimeControl "900+10"]

1. e4 {[%emt 0:00:01]} c5 {[%emt 0:00:03]} 2. Nf3 {[%emt 0:00:02]} d6 {[%emt 0:
00:02]} 3. d4 {[%emt 0:00:02]} Nf6 {[%emt 0:00:01]} 4. Nc3 {[%emt 0:00:01]}
cxd4 {[%emt 0:00:01]} 5. Nxd4 {[%emt 0:00:02]} a6 {[%emt 0:00:01]} 6. Bc4 {
[%emt 0:00:02]} e5 {[%emt 0:03:16]} 7. Nf3 {[%emt 0:00:55]} Be7 {[%emt 0:00:22]
} 8. O-O {[%emt 0:01:19]} O-O {[%emt 0:00:05]} 9. h3 {[%emt 0:00:03]} b5 {
[%emt 0:00:26]} 10. Bd5 {[%emt 0:00:54]} Ra7 {[%emt 0:00:12]} 11. Be3 {[%emt 0:
00:09]} Rd7 {[%emt 0:00:01]} 12. b4 {[%emt 0:00:36]} Qc7 {[%emt 0:00:37]} 13.
Qd2 {[%emt 0:00:02]} Bb7 {[%emt 0:00:31]} 14. a4 {[%emt 0:00:45]} bxa4 {
[%emt 0:00:51]} 15. Rxa4 {[%emt 0:01:32]} Rc8 {[%emt 0:00:06]} 16. Ra3 {
[%emt 0:00:01]} Bf8 {[%emt 0:01:07]} 17. Rc1 {[%emt 0:00:20]} Nc6 {[%emt 0:02:
50]} 18. b5 {[%emt 0:00:09]} axb5 {[%emt 0:00:01]} 19. Nxb5 {[%emt 0:00:02]}
Qd8 {[%emt 0:00:01]} 20. Bg5 {[%emt 0:02:03]} Be7 {[%emt 0:00:50]} 21. Bxf6 {
[%emt 0:00:08]} Bxf6 {[%emt 0:00:01]} 22. c4 {[%emt 0:00:32]} g6 {[%emt 0:00:
51]} 23. Rd3 {[%emt 0:00:05]} Be7 {[%emt 0:00:24]} 24. Rd1 {[%emt 0:00:01]} Qf8
{[%emt 0:00:45]} 25. c5 {[%emt 0:00:51]} Ba6 {[%emt 0:00:40]} 26. Bc4 {[%emt 0:
00:16]} Nd4 {[%emt 0:02:38]} 27. Nfxd4 {[%emt 0:01:52]} exd4 {[%emt 0:00:33]}
28. Rf3 {[%emt 0:01:21]} d5 {[%emt 0:00:59]} 29. Bxd5 {[%emt 0:01:02]} Bxb5 {
[%emt 0:00:45]} 30. Rxf7 {[%emt 0:00:11]} Qxf7 {[%emt 0:00:01]} 31. Bxf7+ {
[%emt 0:00:02]} Kxf7 {[%emt 0:00:01]} 32. e5 {[%emt 0:01:29]} Kg7 {[%emt 0:00:
21]} 33. Qb2 {[%emt 0:00:15]} Rxc5 {[%emt 0:00:57]} 34. Rxd4 {[%emt 0:00:01]}
Rdc7 {[%emt 0:00:02]} 35. Rf4 {[%emt 0:00:17]} Be8 {[%emt 0:00:09]} 36. h4 {
[%emt 0:00:44]} Rc2 {[%emt 0:00:02]} 37. Qb6 {[%emt 0:00:14]} R2c6 {[%emt 0:00:
05]} 38. Qb3 {[%emt 0:00:15]} h5 {[%emt 0:00:18]} 39. Kh2 {[%emt 0:00:45]} Rc3
{[%emt 0:00:19]} 40. Qe6 {[%emt 0:00:27]} R3c6 {[%emt 0:00:02]} 41. Qb3 {
[%emt 0:00:21]} Bf8 {[%emt 0:00:03]} 42. Qb8 {[%emt 0:00:49]} Bf7 {[%emt 0:00:
25]} 43. g3 {[%emt 0:00:16]} Be7 {[%emt 0:00:02]} 44. Qb2 {[%emt 0:00:47]} Be6
{[%emt 0:00:00]} 45. Rf3 {[%emt 0:00:21]} Rc1 {[%emt 0:00:19]} 46. Qd2 {
[%emt 0:00:08]} Ra1 {[%emt 0:00:16]} 47. Rd3 {[%emt 0:00:15]} Rcc1 {[%emt 0:00:
10]} 48. Qb2 {[%emt 0:00:01]} Rh1+ {[%emt 0:00:03]} 49. Kg2 {[%emt 0:00:01]}
Rag1+ {[%emt 0:00:03]} 50. Kf3 {[%emt 0:00:01]} Rb1 {[%emt 0:00:09]} 51. Qc3 {
[%emt 0:00:16]} Bg4+ {[%emt 0:00:05]} 52. Ke3 {[%emt 0:00:01]} Rhe1+ {[%emt 0:
00:38]} 53. Kf4 {[%emt 0:00:16]} Rb4+ {[%emt 0:00:12]} 54. Rd4 {[%emt 0:00:01]}
Reb1 {[%emt 0:00:04]} 55. e6 {[%emt 0:00:05]} R1b3 {[%emt 0:00:14]} 56. Qa1 {
[%emt 0:00:15]} Bf6 {[%emt 0:00:06]} 57. Qa7+ {[%emt 0:00:10]} Kh6 {[%emt 0:00:
01]} 58. e7 {[%emt 0:00:26]} Bxd4 {[%emt 0:00:05]} 0-1

[Event "European Rapid Championship 2021"]
[Site "Katowice"]
[Date "2021.12.18"]
[Round "3.5"]
[White "Kyc, Jerzy"]
[Black "Malek, Jan"]
[Result "1/2-1/2"]
[ECO "B34"]
[WhiteElo "2308"]
[BlackElo "2029"]
[Annotator "NA"]
[PlyCount "55"]
[EventDate "2021.12.18"]
[EventType "swiss"]
[EventCountry "POL"]
[SourceTitle "playchess.com"]
[Source "ChessBase"]
[SourceQuality "1"]
[TimeControl "900+10"]

1. e4 {[%emt 0:00:01]} c5 {[%emt 0:00:01]} 2. Nf3 {[%emt 0:00:01]} Nc6 {
[%emt 0:00:01]} 3. d4 {[%emt 0:00:01]} cxd4 {[%emt 0:00:01]} 4. Nxd4 {[%emt 0:
00:01]} g6 {[%emt 0:00:00]} 5. Nc3 {[%emt 0:00:02]} Bg7 {[%emt 0:00:02]} 6. Be3
{[%emt 0:00:01]} Nf6 {[%emt 0:00:01]} 7. Nxc6 {[%emt 0:00:01]} bxc6 {[%emt 0:
00:01]} 8. e5 {[%emt 0:00:01]} Ng8 {[%emt 0:00:01]} 9. Bd4 {[%emt 0:00:01]} Qa5
{[%emt 0:00:06]} 10. Bc4 {[%emt 0:00:35]} Bxe5 {[%emt 0:01:39]} 11. f4 {
[%emt 0:00:01]} Bxd4 {[%emt 0:00:39]} 12. Qxd4 {[%emt 0:00:02]} Nf6 {[%emt 0:
00:02]} 13. O-O-O {[%emt 0:00:09]} d5 {[%emt 0:00:42]} 14. Bb3 {[%emt 0:01:47]}
Be6 {[%emt 0:00:50]} 15. h3 {[%emt 0:00:39]} O-O {[%emt 0:00:52]} 16. g4 {
[%emt 0:00:12]} c5 {[%emt 0:00:02]} 17. Qe5 {[%emt 0:00:07]} Nd7 {[%emt 0:00:
35]} 18. Qg5 {[%emt 0:00:56]} f6 {[%emt 0:01:21]} 19. Qh6 {[%emt 0:00:40]} c4 {
[%emt 0:00:02]} 20. Ba4 {[%emt 0:00:51]} Nb6 {[%emt 0:00:26]} 21. Bc6 {[%emt 0:
01:29]} Rac8 {[%emt 0:04:14]} 22. f5 {[%emt 0:00:03]} d4 {[%emt 0:01:33]} 23.
Nd5 {[%emt 0:05:07]} Nxd5 {[%emt 0:02:43]} 24. fxg6 {[%emt 0:00:03]} hxg6 {
[%emt 0:01:05]} 25. Qxg6+ {[%emt 0:00:03]} Kh8 {[%emt 0:00:04]} 26. Qh6+ {
[%emt 0:00:01]} Kg8 {[%emt 0:00:01]} 27. Qg6+ {[%emt 0:00:01]} Kh8 {[%emt 0:00:
01]} 28. Qh6+ {[%emt 0:00:01]} 1/2-1/2

[Event "European Rapid Championship 2021"]
[Site "Katowice"]
[Date "2021.12.18"]
[Round "3.6"]
[White "Jonsson, Gauti Pall"]
[Black "Wisniewski, Adrian"]
[Result "1-0"]
[ECO "A05"]
[WhiteElo "2014"]
[BlackElo "2351"]
[Annotator "NA"]
[PlyCount "81"]
[EventDate "2021.12.18"]
[EventType "swiss"]
[EventCountry "POL"]
[SourceTitle "playchess.com"]
[Source "ChessBase"]
[SourceQuality "1"]
[TimeControl "900+10"]

1. Nf3 {[%emt 0:00:09]} Nf6 {[%emt 0:00:02]} 2. g3 {[%emt 0:00:01]} g6 {
[%emt 0:00:03]} 3. b3 {[%emt 0:00:03]} Bg7 {[%emt 0:00:03]} 4. Bb2 {[%emt 0:00:
02]} c5 {[%emt 0:00:03]} 5. e4 {[%emt 0:01:04]} O-O {[%emt 0:00:12]} 6. e5 {
[%emt 0:00:10]} Nd5 {[%emt 0:00:09]} 7. c4 {[%emt 0:00:12]} Nb4 {[%emt 0:00:24]
} 8. d4 {[%emt 0:00:42]} cxd4 {[%emt 0:00:08]} 9. Bg2 {[%emt 0:00:55]} d3 {
[%emt 0:00:05]} 10. O-O {[%emt 0:00:51]} Nc2 {[%emt 0:00:17]} 11. Qxd3 {
[%emt 0:00:01]} Nxa1 {[%emt 0:00:03]} 12. Bxa1 {[%emt 0:00:02]} Nc6 {[%emt 0:
00:19]} 13. h4 {[%emt 0:00:16]} d6 {[%emt 0:00:03]} 14. h5 {[%emt 0:00:29]} Qa5
{[%emt 0:00:37]} 15. h6 {[%emt 0:00:37]} Nxe5 {[%emt 0:00:53]} 16. Nxe5 {
[%emt 0:00:34]} Bxe5 {[%emt 0:00:02]} 17. Bc3 {[%emt 0:00:47]} Bxc3 {[%emt 0:
04:18]} 18. Nxc3 {[%emt 0:00:03]} Qg5 {[%emt 0:00:02]} 19. Nd5 {[%emt 0:00:35]}
e6 {[%emt 0:05:59]} 20. f4 {[%emt 0:01:26]} Qd8 {[%emt 0:00:12]} 21. Qc3 {
[%emt 0:01:00]} f6 {[%emt 0:00:02]} 22. Ne3 {[%emt 0:00:03]} Qc7 {[%emt 0:00:
39]} 23. g4 {[%emt 0:00:11]} Bd7 {[%emt 0:00:39]} 24. f5 {[%emt 0:00:10]} exf5
{[%emt 0:00:10]} 25. Bd5+ {[%emt 0:00:29]} Kh8 {[%emt 0:00:07]} 26. g5 {
[%emt 0:00:28]} Bc6 {[%emt 0:00:47]} 27. gxf6 {[%emt 0:00:08]} Rae8 {[%emt 0:
00:01]} 28. f7+ {[%emt 0:02:36]} Re5 {[%emt 0:00:01]} 29. Bxc6 {[%emt 0:01:46]}
bxc6 {[%emt 0:00:04]} 30. c5 {[%emt 0:00:10]} Qxf7 {[%emt 0:01:16]} 31. cxd6 {
[%emt 0:00:32]} Qf6 {[%emt 0:00:00]} 32. Ng4 {[%emt 0:00:02]} Qxd6 {[%emt 0:01:
39]} 33. Qxe5+ {[%emt 0:00:49]} Qxe5 {[%emt 0:00:01]} 34. Nxe5 {[%emt 0:00:01]}
Re8 {[%emt 0:00:17]} 35. Rd1 {[%emt 0:00:25]} Kg8 {[%emt 0:00:02]} 36. Nxc6 {
[%emt 0:00:02]} Re2 {[%emt 0:00:20]} 37. Rd8+ {[%emt 0:00:05]} Kf7 {[%emt 0:00:
01]} 38. Rd7+ {[%emt 0:00:02]} Kf6 {[%emt 0:00:01]} 39. Rxh7 {[%emt 0:00:06]}
Rxa2 {[%emt 0:00:03]} 40. Rxa7 {[%emt 0:00:11]} Rb2 {[%emt 0:00:05]} 41. h7 {
[%emt 0:00:03]} 1-0

[Event "European Rapid Championship 2021"]
[Site "Katowice"]
[Date "2021.12.18"]
[Round "3.7"]
[White "Hasterok, Mateusz"]
[Black "Jagodzinski, Piotr"]
[Result "0-1"]
[ECO "D37"]
[WhiteElo "2132"]
[BlackElo "2145"]
[Annotator "NA"]
[PlyCount "122"]
[EventDate "2021.12.18"]
[EventType "swiss"]
[EventCountry "POL"]
[SourceTitle "playchess.com"]
[Source "ChessBase"]
[SourceQuality "1"]
[TimeControl "900+10"]

1. d4 {[%emt 0:00:01]} d5 {[%emt 0:00:08]} 2. c4 {[%emt 0:00:03]} e6 {[%emt 0:
00:00]} 3. Nc3 {[%emt 0:00:01]} Nf6 {[%emt 0:00:01]} 4. Nf3 {[%emt 0:00:02]}
Be7 {[%emt 0:00:01]} 5. Bf4 {[%emt 0:00:01]} O-O {[%emt 0:00:02]} 6. e3 {
[%emt 0:00:02]} c6 {[%emt 0:00:32]} 7. c5 {[%emt 0:00:03]} Nbd7 {[%emt 0:00:10]
} 8. Bd3 {[%emt 0:00:08]} b6 {[%emt 0:00:57]} 9. b4 {[%emt 0:00:02]} bxc5 {
[%emt 0:00:23]} 10. bxc5 {[%emt 0:00:02]} Qa5 {[%emt 0:00:02]} 11. Qd2 {
[%emt 0:00:13]} Ba6 {[%emt 0:00:47]} 12. O-O {[%emt 0:00:29]} Bxd3 {[%emt 0:00:
03]} 13. Qxd3 {[%emt 0:00:02]} Nh5 {[%emt 0:00:03]} 14. Rab1 {[%emt 0:01:25]}
Nxf4 {[%emt 0:00:26]} 15. exf4 {[%emt 0:00:02]} Rab8 {[%emt 0:00:12]} 16. Ne5 {
[%emt 0:01:28]} Nxe5 {[%emt 0:00:15]} 17. fxe5 {[%emt 0:00:01]} Bg5 {[%emt 0:
02:38]} 18. g3 {[%emt 0:00:50]} Qa3 {[%emt 0:00:31]} 19. f4 {[%emt 0:00:51]}
Be7 {[%emt 0:00:01]} 20. Kh1 {[%emt 0:01:10]} Rfd8 {[%emt 0:02:52]} 21. Rfd1 {
[%emt 0:01:46]} Bf8 {[%emt 0:01:45]} 22. Qc2 {[%emt 0:00:30]} g6 {[%emt 0:00:
24]} 23. Kg2 {[%emt 0:01:07]} Kg7 {[%emt 0:00:01]} 24. h4 {[%emt 0:00:58]} h5 {
[%emt 0:00:18]} 25. Rd3 {[%emt 0:00:31]} Qa6 {[%emt 0:01:18]} 26. Nd1 {[%emt 0:
01:11]} Be7 {[%emt 0:01:45]} 27. Rdb3 {[%emt 0:00:16]} Qa4 {[%emt 0:00:10]} 28.
Qb2 {[%emt 0:00:50]} Rxb3 {[%emt 0:00:19]} 29. axb3 {[%emt 0:00:01]} Qb4 {
[%emt 0:00:06]} 30. Qc3 {[%emt 0:00:16]} Bxc5 {[%emt 0:00:14]} 31. Qxb4 {
[%emt 0:00:10]} Bxb4 {[%emt 0:00:00]} 32. Rc1 {[%emt 0:00:31]} Rc8 {[%emt 0:00:
02]} 33. Nf2 {[%emt 0:00:03]} Bd2 {[%emt 0:00:20]} 34. Rd1 {[%emt 0:00:06]} Bc3
{[%emt 0:01:18]} 35. Rd3 {[%emt 0:00:18]} Ba5 {[%emt 0:00:01]} 36. g4 {[%emt 0:
00:07]} hxg4 {[%emt 0:00:17]} 37. Nxg4 {[%emt 0:00:01]} c5 {[%emt 0:00:02]} 38.
h5 {[%emt 0:00:10]} c4 {[%emt 0:00:19]} 39. h6+ {[%emt 0:00:11]} Kh8 {[%emt 0:
00:13]} 40. bxc4 {[%emt 0:00:30]} dxc4 {[%emt 0:00:02]} 41. Rd1 {[%emt 0:00:09]
} c3 {[%emt 0:00:04]} 42. Ne3 {[%emt 0:00:10]} Bb4 {[%emt 0:02:12]} 43. Rc1 {
[%emt 0:00:13]} a5 {[%emt 0:00:09]} 44. Rc2 {[%emt 0:00:10]} a4 {[%emt 0:00:05]
} 45. d5 {[%emt 0:00:01]} exd5 {[%emt 0:00:24]} 46. Nxd5 {[%emt 0:00:01]} Ba5 {
[%emt 0:00:00]} 47. Ne3 {[%emt 0:01:04]} a3 {[%emt 0:00:16]} 48. Ra2 {[%emt 0:
00:26]} Bb6 {[%emt 0:00:16]} 49. Nc2 {[%emt 0:00:02]} Bc5 {[%emt 0:00:01]} 50.
Kf3 {[%emt 0:00:16]} Rd8 {[%emt 0:00:06]} 51. Ra1 {[%emt 0:00:01]} Rd2 {
[%emt 0:00:17]} 52. Ra2 {[%emt 0:00:29]} Kh7 {[%emt 0:00:08]} 53. Ke4 {[%emt 0:
00:11]} Kxh6 {[%emt 0:00:08]} 54. f5 {[%emt 0:00:07]} g5 {[%emt 0:00:12]} 55.
e6 {[%emt 0:00:02]} fxe6 {[%emt 0:00:01]} 56. fxe6 {[%emt 0:00:02]} Kg6 {
[%emt 0:00:02]} 57. Ke5 {[%emt 0:00:08]} Bd6+ {[%emt 0:00:08]} 58. Ke4 {
[%emt 0:00:01]} Kf6 {[%emt 0:00:13]} 59. Ke3 {[%emt 0:00:07]} g4 {[%emt 0:00:
08]} 60. Ke4 {[%emt 0:00:12]} g3 {[%emt 0:00:01]} 61. Kf3 {[%emt 0:00:03]} g2 {
[%emt 0:00:01]} 0-1

[Event "European Rapid Championship 2021"]
[Site "Katowice"]
[Date "2021.12.18"]
[Round "3.8"]
[White "Karolczuk, Iwo"]
[Black "Szwed, Jacek"]
[Result "1-0"]
[ECO "D25"]
[WhiteElo "2007"]
[BlackElo "2372"]
[Annotator "NA"]
[PlyCount "61"]
[EventDate "2021.12.18"]
[EventType "swiss"]
[EventCountry "POL"]
[SourceTitle "playchess.com"]
[Source "ChessBase"]
[SourceQuality "1"]
[TimeControl "900+10"]

1. d4 {[%emt 0:00:04]} d5 {[%emt 0:02:00]} 2. Nf3 {[%emt 0:00:04]} Nf6 {
[%emt 0:00:02]} 3. c4 {[%emt 0:00:02]} dxc4 {[%emt 0:00:02]} 4. e3 {[%emt 0:00:
08]} b5 {[%emt 0:00:01]} 5. a4 {[%emt 0:00:29]} b4 {[%emt 0:00:01]} 6. Bxc4 {
[%emt 0:00:07]} e6 {[%emt 0:00:02]} 7. O-O {[%emt 0:00:06]} Be7 {[%emt 0:00:01]
} 8. b3 {[%emt 0:00:18]} O-O {[%emt 0:00:03]} 9. Bb2 {[%emt 0:00:01]} Bb7 {
[%emt 0:00:05]} 10. Nbd2 {[%emt 0:00:07]} c5 {[%emt 0:00:06]} 11. Qe2 {[%emt 0:
00:07]} Nbd7 {[%emt 0:01:22]} 12. Rfd1 {[%emt 0:00:19]} cxd4 {[%emt 0:00:32]}
13. Nxd4 {[%emt 0:00:08]} Nc5 {[%emt 0:00:02]} 14. N2f3 {[%emt 0:01:27]} Qa5 {
[%emt 0:00:15]} 15. Rac1 {[%emt 0:01:42]} Rac8 {[%emt 0:00:08]} 16. Ba1 {
[%emt 0:03:32]} Rfd8 {[%emt 0:03:02]} 17. Ne5 {[%emt 0:01:10]} Nd5 {[%emt 0:02:
58]} 18. Qh5 {[%emt 0:01:17]} g6 {[%emt 0:00:10]} 19. Qh3 {[%emt 0:00:07]} Rf8
{[%emt 0:02:59]} 20. Ng4 {[%emt 0:00:56]} Nc3 {[%emt 0:00:13]} 21. Nb5 {
[%emt 0:01:28]} N5xa4 {[%emt 0:01:39]} 22. Rd7 {[%emt 0:01:44]} Bg5 {[%emt 0:
01:26]} 23. Rxb7 {[%emt 0:01:19]} Ne2+ {[%emt 0:01:24]} 24. Kf1 {[%emt 0:00:11]
} Nxc1 {[%emt 0:00:15]} 25. Nf6+ {[%emt 0:02:02]} Bxf6 {[%emt 0:00:02]} 26.
Bxf6 Rfd8 27. g3 {[%emt 0:00:05]} h5 {[%emt 0:00:12]} 28. Rxf7 {[%emt 0:00:12]}
Rxc4 {[%emt 0:00:26]} 29. Rg7+ {[%emt 0:00:04]} Kf8 {[%emt 0:00:03]} 30. Qxe6 {
[%emt 0:00:18]} Rc7 {[%emt 0:00:22]} 31. Rg8# {[%emt 0:00:02]} 1-0

[Event "European Rapid Championship 2021"]
[Site "Katowice"]
[Date "2021.12.18"]
[Round "3.9"]
[White "Stanisz, Patryk"]
[Black "Donchenko, Alexander"]
[Result "0-1"]
[ECO "E20"]
[WhiteElo "2125"]
[BlackElo "2535"]
[Annotator "ChessBase"]
[PlyCount "44"]
[EventDate "2021.12.18"]
[EventType "swiss"]
[EventCountry "POL"]
[SourceTitle "playchess.com"]
[Source "ChessBase"]
[SourceQuality "1"]
[TimeControl "900+10"]

1. d4 {[%emt 0:00:01]} Nf6 {[%emt 0:00:02]} 2. c4 {[%emt 0:00:02]} e6 {[%emt 0:
00:02]} 3. Nc3 {[%emt 0:00:03]} Bb4 {[%emt 0:00:03]} 4. f3 {[%emt 0:00:02]} c5
{[%emt 0:00:10]} 5. d5 {[%emt 0:00:27]} d6 {[%emt 0:00:05]} 6. e4 {[%emt 0:00:
03]} b5 {[%emt 0:00:03]} 7. Nge2 {[%emt 0:01:19]} bxc4 {[%emt 0:00:03]} 8. a3 {
[%emt 0:00:01]} Ba5 {[%emt 0:00:08]} 9. Qa4+ {[%emt 0:01:11]} Bd7 {[%emt 0:01:
04]} 10. Qxc4 {[%emt 0:00:02]} exd5 {[%emt 0:00:06]} 11. exd5 {[%emt 0:00:04]}
O-O {[%emt 0:00:23]} 12. Bg5 {[%emt 0:00:26]} h6 {[%emt 0:00:37]} 13. h4 {
[%emt 0:01:07]} Re8 {[%emt 0:02:33]} 14. O-O-O {[%emt 0:00:34]} hxg5 {[%emt 0:
01:14]} 15. hxg5 {[%emt 0:00:02]} Nh7 {[%emt 0:00:02]} 16. Rxh7 {[%emt 0:01:11]
} Kxh7 {[%emt 0:00:49]} 17. Qh4+ {[%emt 0:00:01]} Kg8 {[%emt 0:00:01]} 18. Ne4
{[%emt 0:03:30]} Rxe4 {[%emt 0:02:16]} 19. fxe4 {[%emt 0:00:01]} Qe7 {[%emt 0:
00:01]} 20. Ng3 {[%emt 0:03:34]} Bd8 {[%emt 0:00:20]} 21. Qh2 {[%emt 0:01:04]}
Qxg5+ {[%emt 0:00:13]} 22. Kb1 {[%emt 0:00:01]} Qh4 {[%emt 0:00:24]} 0-1